bitfinex-derivatives/quotes_SOLF0:USTF0_20240926
["timestamp","ask_amount","ask_price","bid_price","bid_amount"]
[1727368450482,4.55621727,157.86,157.73,4.61475128]
[1727368451369,3.168,157.81,157.73,4.61475128]
[1727368451568,4.55621727,157.86,157.73,4.61475128]
[1727368451974,3.168,157.81,157.73,4.61475128]
[1727368452172,3.168,157.81,157.76,3.1687]
[1727368453079,3.1676,157.83,157.73,28.96475128]
[1727368453381,4.55621727,157.86,157.76,24.35]
[1727368453577,1.3161,157.86,157.76,24.35]
[1727368453977,1.3161,157.86,157.74,1.2509]
[1727368454189,24.35,157.83,157.74,1.2509]
[1727368454382,3.1682,157.8,157.76,3.1688]
[1727368454978,3.1682,157.8,157.76,3.1687]
[1727368456383,24.35,157.83,157.74,1.2509]
[1727368456579,24.35,157.83,157.77,3.1686]
[1727368456983,24.35,157.83,157.74,1.2509]
[1727368457182,24.35,157.81,157.73,1.374]
[1727368457378,24.35,157.84,157.73,4.52804418]
[1727368457578,25.6661,157.86,157.79,3.1681]
[1727368458089,3.1678,157.82,157.79,3.1681]
[1727368459586,3.1675,157.83,157.76,3.22924656]
[1727368459784,25.6661,157.86,157.74,24.35]
[1727368460187,3.1676,157.82,157.74,24.35]
[1727368460384,25.6661,157.86,157.74,27.54311247]
[1727368461188,1.3161,157.86,157.76,24.35]
[1727368461388,3.1672,157.85,157.77,1.2829]
[1727368462100,3.1673,157.84,157.81,3.1677]
[1727368462296,1.3161,157.86,157.77,1.2829]
[1727368462589,1.3161,157.86,157.79,3.1681]
[1727368462590,3.1676,157.82,157.79,3.1681]
[1727368462989,25.6661,157.86,157.75,1.3311]
[1727368463194,3.168,157.81,157.78,3.1684]
[1727368463383,25.6661,157.86,157.78,3.1684]
[1727368463895,3.168,157.81,157.78,3.1684]
[1727368464282,3.1681,157.8,157.78,3.1684]
[1727368464487,25.6661,157.86,157.79,3.1682]
[1727368465091,25.6661,157.86,157.74,27.54311247]
[1727368465293,24.35,157.83,157.71,26.9202]
[1727368465596,3.1684,157.79,157.72,3.18446599]
[1727368465792,3.1684,157.79,157.76,3.1687]
[1727368465999,24.35,157.83,157.76,3.1687]
[1727368466193,24.35,157.83,157.72,3.18446599]
[1727368466392,25.6661,157.86,157.74,24.35]
[1727368466593,3.1678,157.81,157.74,24.35]
[1727368466788,25.6661,157.86,157.74,24.35]
[1727368466984,1.3161,157.86,157.74,24.35]
[1727368467186,3.1673,157.84,157.74,24.35]
[1727368467393,1.3161,157.86,157.76,24.35]
[1727368467794,3.1673,157.84,157.76,24.35]
[1727368467993,1.3161,157.86,157.76,24.35]
[1727368468190,1.3161,157.86,157.74,24.35]
[1727368468399,16.5261,157.86,157.77,15.21]
[1727368468801,15.21,157.84,157.75,15.21]
[1727368469098,15.21,157.84,157.77,3.1685]
[1727368469501,3.1679,157.81,157.78,3.1683]
[1727368469701,15.21,157.84,157.75,15.21]
[1727368469900,15.21,157.82,157.73,16.584]
[1727368470599,15.21,157.8,157.73,1.374]
[1727368470900,15.21,157.78,157.71,1.2829]
[1727368471097,15.21,157.75,157.67,1.3073]
[1727368471609,15.21,157.76,157.67,16.5173]
[1727368472206,3.1691,157.75,157.71,3.1697]
[1727368472400,1.3456,157.79,157.7,3.10758069]
[1727368472604,1.3456,157.79,157.68,24.36]
[1727368473708,3.1685,157.78,157.74,3.1692]
[1727368474204,1.3456,157.79,157.75,3.169]
[1727368474409,1.3456,157.79,157.7,24.36]
[1727368474711,1.3456,157.79,157.7,27.57380578]
[1727368474908,571.0,159.44,157.73,24.36]
[1727368474909,24.36,157.87,157.73,24.36]
[1727368475114,25.6204,157.87,157.74,2.6466]
[1727368475307,25.6204,157.87,157.74,5.7595979]
[1727368475510,3.1678,157.82,157.78,3.1684]
[1727368476503,3.1678,157.81,157.77,3.1686]
[1727368476735,25.6204,157.87,157.76,3.22109691]
[1727368476909,25.6204,157.87,157.74,2.6466]
[1727368477129,25.3594,157.85,157.74,5.88684646]
[1727368477310,25.3594,157.85,157.74,2.6466]
[1727368477513,3.1678,157.82,157.77,3.1685]
[1727368477813,3.1678,157.82,157.74,5.75880855]
[1727368478908,3.1678,157.82,157.77,3.1686]
[1727368479108,3.1673,157.84,157.75,24.36]
[1727368479311,3.1673,157.84,157.75,25.6653]
[1727368479968,3.1675,157.83,157.79,3.1681]
[1727368480111,1.2604,157.87,157.75,25.6653]
[1727368480411,3.1676,157.82,157.75,1.3053]
[1727368481306,3.1676,157.82,157.78,3.1683]
[1727368481504,24.36,157.85,157.75,25.6653]
[1727368481505,3.1676,157.83,157.75,25.6653]
[1727368481905,1.2604,157.87,157.8,3.168]
[1727368482106,1.2604,157.87,157.75,25.6653]
[1727368482723,3.1675,157.83,157.79,3.1681]
[1727368483520,1.2604,157.87,157.78,3.1684]
[1727368483716,24.36,157.85,157.78,3.1684]
[1727368484318,24.36,157.85,157.77,3.1686]
[1727368484520,24.36,157.85,157.74,5.75880855]
[1727368484521,24.36,157.83,157.74,2.6466]
[1727368485513,24.36,157.85,157.78,3.1684]
[1727368485713,24.36,157.85,157.74,2.6466]
[1727368486122,24.36,157.85,157.77,3.1685]
[1727368486519,3.168,157.81,157.77,3.1685]
[1727368486720,24.36,157.85,157.74,2.6466]
[1727368486923,24.36,157.76,157.67,5.75385453]
[1727368487118,3.1696,157.73,157.67,1.3142]
[1727368487421,24.36,157.76,157.7,3.17]
[1727368487618,3.1695,157.73,157.67,1.3142]
[1727368487816,24.36,157.76,157.67,1.3142]
[1727368488214,3.1695,157.73,157.69,3.1701]
[1727368489215,24.36,157.74,157.67,1.3142]
[1727368489730,3.1692,157.75,157.71,3.1697]
[1727368489911,1.2478,157.79,157.71,3.20669394]
[1727368490123,1.2478,157.79,157.68,24.36]
[1727368490317,4.4161,157.79,157.75,3.169]
[1727368490920,24.36,157.83,157.76,3.1688]
[1727368491115,25.6808,157.83,157.76,3.1688]
[1727368491626,3.1681,157.8,157.76,3.1688]
[1727368491924,25.6808,157.83,157.76,3.1688]
[1727368492126,25.6808,157.83,157.75,3.169]
[1727368492462,25.6808,157.83,157.71,24.36]
[1727368492625,3.1686,157.78,157.74,3.1691]
[1727368493016,3.1683,157.79,157.75,3.1689]
[1727368493420,25.6808,157.83,157.71,27.45821918]
[1727368493621,24.36,157.8,157.71,3.09821918]
[1727368493827,3.1687,157.77,157.68,24.36]
[1727368494324,3.1687,157.77,157.73,3.1693]
[1727368494534,3.1687,157.77,157.71,3.13435556]
[1727368494724,3.1688,157.76,157.68,24.36]
[1727368494921,24.36,157.8,157.67,1.3142]
[1727368495316,3.1691,157.75,157.71,3.1697]
[1727368495515,24.36,157.8,157.7,3.15686155]
[1727368495719,24.36,157.8,157.67,1.3142]
[1727368495930,3.169,157.76,157.72,3.1695]
[1727368496930,15.22,157.76,157.67,16.5342]
[1727368497325,15.22,157.78,157.73,3.1694]
[1727368497646,15.22,157.78,157.69,15.22]
[1727368497930,3.1692,157.75,157.71,3.1697]
[1727368498130,3.1692,157.75,157.67,16.5342]
[1727368498325,15.22,157.78,157.67,16.5342]
[1727368498528,3.169,157.75,157.67,16.5342]
[1727368498918,3.169,157.75,157.71,3.1697]
[1727368499124,3.169,157.75,157.67,16.5342]
[1727368499523,3.1689,157.76,157.72,3.1695]
[1727368499823,15.22,157.8,157.71,15.22]
[1727368500129,3.1687,157.77,157.71,15.22]
[1727368500533,3.1684,157.79,157.75,3.1689]
[1727368500833,15.22,157.81,157.75,3.1689]
[1727368501040,15.22,157.79,157.69,15.22]
[1727368501233,15.22,157.77,157.72,3.1695]
[1727368501428,15.22,157.75,157.67,16.5342]
[1727368501727,3.1691,157.75,157.71,3.1697]
[1727368501927,3.1691,157.75,157.68,15.22]
[1727368502521,3.1693,157.74,157.68,15.22]
[1727368502925,3.1693,157.74,157.71,3.1698]
[1727368503530,15.22,157.73,157.68,3.1703]
[1727368503928,3.1698,157.72,157.67,1.3142]
[1727368504230,15.22,157.73,157.69,3.1701]
[1727368504434,3.1697,157.72,157.69,3.1701]
[1727368504728,15.22,157.75,157.7,3.1699]
[1727368505023,3.1693,157.74,157.67,1.3142]
[1727368505230,15.22,157.75,157.69,3.1701]
[1727368505622,15.22,157.75,157.66,16.4982]
[1727368506025,3.1698,157.72,157.68,3.1704]
[1727368506227,15.22,157.75,157.68,3.1704]
[1727368506426,15.22,157.72,157.63,1.3765]
[1727368506826,15.22,157.74,157.64,15.22]
[1727368507029,15.22,157.74,157.69,3.1701]
[1727368507228,15.22,157.74,157.64,15.22]
[1727368507431,15.22,157.74,157.67,3.1705]
[1727368507632,15.22,157.74,157.64,15.22]
[1727368508062,15.22,157.74,157.69,3.1702]
[1727368508926,15.22,157.74,157.64,15.22]
[1727368509132,15.22,157.74,157.68,3.1704]
[1727368509333,3.1699,157.71,157.68,3.1704]
[1727368509535,3.1699,157.71,157.64,15.22]
[1727368509731,15.22,157.74,157.66,15.22]
[1727368509930,3.1694,157.74,157.68,15.22]
[1727368510530,4.4484,157.76,157.68,15.22]
[1727368510734,1.2795,157.76,157.72,3.1695]
[1727368511132,1.2795,157.76,157.68,15.22]
[1727368511626,3.1691,157.75,157.68,15.22]
[1727368511828,15.22,157.77,157.68,15.22]
[1727368512226,3.1694,157.74,157.71,3.1697]
[1727368512430,15.22,157.77,157.68,15.22]
[1727368512839,3.1692,157.75,157.68,15.22]
[1727368513333,15.22,157.75,157.66,15.22]
[1727368513937,3.14771814,157.79,157.65,1.3604]
[1727368513938,15.22,157.73,157.65,1.3604]
[1727368514129,1.2873,157.74,157.65,1.3604]
[1727368515535,1.2873,157.74,157.68,15.22]
[1727368515736,4.4567,157.74,157.71,3.1698]
[1727368516037,4.4567,157.74,157.68,15.22]
[1727368516242,1.2873,157.74,157.66,15.22]
[1727368516538,15.22,157.73,157.65,1.3604]
[1727368516926,3.1699,157.71,157.67,3.1705]
[1727368517330,15.22,157.73,157.67,3.1705]
[1727368517641,3.17,157.71,157.68,3.1703]
[1727368518336,3.1697,157.72,157.69,3.1702]
[1727368518839,3.1699,157.71,157.68,3.1704]
[1727368519633,3.1697,157.72,157.69,3.1702]
[1727368520236,1.2873,157.74,157.65,1.3604]
[1727368520429,3.14771814,157.79,157.69,15.22]
[1727368520632,1.3695,157.79,157.7,18.37869716]
[1727368520835,1.3695,157.79,157.72,15.22]
[1727368521059,3.1677,157.82,157.78,3.1684]
[1727368521238,3.1677,157.82,157.74,15.22]
[1727368521441,1.3695,157.84,157.76,15.22]
[1727368521943,4.5368,157.84,157.8,3.1679]
[1727368522140,4.5368,157.84,157.76,18.4510687]
[1727368522438,1.3695,157.84,157.76,3.2310687]
[1727368522661,3.1675,157.83,157.8,3.168]
[1727368522839,3.1675,157.83,157.76,3.2310687]
[1727368523040,3.1677,157.82,157.79,3.1681]
[1727368523338,25.7095,157.84,157.75,2.7067]
[1727368524139,3.1678,157.82,157.78,3.1683]
[1727368524442,1.3695,157.84,157.75,2.7067]
[1727368524843,24.34,157.91,157.77,24.34]
[1727368525039,24.34,157.91,157.75,2.7067]
[1727368525040,27.49407814,157.91,157.79,24.34]
[1727368525243,27.49407814,157.91,157.83,3.1674]
[1727368525244,3.1666,157.88,157.83,3.1674]
[1727368525543,27.49407814,157.91,157.83,3.1674]
[1727368525744,27.49407814,157.91,157.79,24.34]
[1727368525937,24.34,157.89,157.76,25.6605]
[1727368526133,24.34,157.86,157.76,1.3205]
[1727368526539,3.1676,157.83,157.78,3.1684]
[1727368526735,1.3181,157.85,157.78,3.1684]
[1727368527145,3.1675,157.83,157.78,3.1684]
[1727368527747,1.3181,157.85,157.78,3.1684]
[1727368528144,1.3181,157.85,157.77,3.1686]
[1727368528342,24.34,157.84,157.77,3.1686]
[1727368528943,24.34,157.84,157.76,3.1688]
[1727368529445,24.34,157.84,157.75,2.7067]
[1727368529646,3.1683,157.79,157.75,2.7067]
[1727368530048,24.34,157.84,157.77,3.1686]
[1727368530238,24.34,157.81,157.71,1.2672]
[1727368530435,24.34,157.81,157.71,3.22555543]
[1727368530742,24.34,157.81,157.75,3.1689]
[1727368530941,24.34,157.81,157.71,1.3823]
[1727368531351,24.34,157.79,157.71,1.3823]
[1727368531540,24.34,157.79,157.67,1.294]
[1727368531541,24.34,157.76,157.67,1.294]
[1727368532247,3.1691,157.75,157.71,3.1697]
[1727368533039,3.1691,157.75,157.67,1.294]
[1727368533245,1.2953,157.78,157.67,1.294]
[1727368533246,3.1693,157.74,157.67,1.294]
[1727368533740,3.1696,157.73,157.66,1.3823]
[1727368534042,24.34,157.71,157.63,5.78850283]
[1727368534243,24.34,157.69,157.63,1.3386]
[1727368534442,3.1707,157.67,157.63,1.3386]
[1727368534746,24.34,157.69,157.61,60.09671394]
[1727368534946,3.1708,157.67,157.61,1.3178]
[1727368535641,24.34,157.66,157.61,1.3178]
[1727368535953,24.34,157.66,157.59,1.3492]
[1727368536447,3.1712,157.65,157.61,3.1718]
[1727368537242,3.1713,157.64,157.61,3.1718]
[1727368537441,24.34,157.64,157.56,1.3178]
[1727368537945,3.1718,157.62,157.58,3.1723]
[1727368538646,3.1719,157.61,157.57,3.1726]
[1727368538950,24.34,157.61,157.53,1.352]
[1727368539242,1.253,157.63,157.43,26.42950376]
[1727368539243,24.34,157.59,157.52,1.3717]
[1727368539635,3.1728,157.57,157.52,1.3717]
[1727368540145,3.1725,157.58,157.52,1.3717]
[1727368540543,24.34,157.59,157.52,1.3717]
[1727368540744,24.34,157.59,157.55,3.1729]
[1727368540942,24.34,157.59,157.52,1.3717]
[1727368542347,24.34,157.59,157.55,3.1729]
[1727368542946,27.5124,157.59,157.55,3.1729]
[1727368543448,24.34,157.59,157.55,3.1729]
[1727368543649,27.5123,157.59,157.56,3.1728]
[1727368543852,24.34,157.59,157.52,1.3717]
[1727368544043,24.34,157.61,157.52,1.3717]
[1727368544239,27.512,157.61,157.57,3.1725]
[1727368544454,24.34,157.61,157.57,3.1725]
[1727368544643,24.34,157.61,157.52,1.3717]
[1727368545049,24.34,157.59,157.52,1.3717]
[1727368545359,24.34,157.59,157.49,4.50323303]
[1727368545550,24.34,157.59,157.5,1.3139]
[1727368546255,24.34,157.59,157.54,3.1731]
[1727368546551,24.34,157.59,157.5,1.3139]
[1727368546742,3.1725,157.58,157.5,1.3139]
[1727368546946,24.34,157.59,157.55,3.173]
[1727368548749,3.1725,157.58,157.55,3.173]
[1727368551869,3.1727,157.57,157.54,3.1732]
[1727368552064,24.34,157.57,157.5,1.3139]
[1727368552264,24.34,157.57,157.42,65.11110083]
[1727368552265,24.34,157.55,157.46,3.1184238]
[1727368552465,24.34,157.55,157.43,2.5944]
[1727368552966,24.34,157.55,157.45,4.49462095]
[1727368553166,24.34,157.55,157.5,3.174]
[1727368553569,3.1735,157.53,157.5,3.174]
[1727368554172,3.1739,157.51,157.48,3.1744]
[1727368554366,24.34,157.55,157.45,4.49462095]
[1727368555377,3.1735,157.53,157.5,3.174]
[1727368555571,24.34,157.55,157.45,4.49462095]
[1727368555765,3.1735,157.53,157.5,3.1739]
[1727368556164,24.34,157.55,157.45,4.49462095]
[1727368556364,1.2604,157.56,157.45,4.49462095]
[1727368556365,1.2604,157.56,157.46,6.3498]
[1727368557474,3.1734,157.54,157.45,28.83462095]
[1727368557785,24.34,157.55,157.45,28.83462095]
[1727368558075,1.2604,157.56,157.45,28.83462095]
[1727368559680,1.2604,157.56,157.53,3.1733]
[1727368559969,1.2604,157.56,157.46,6.3498]
[1727368560170,1.2604,157.56,157.47,24.34]
[1727368560578,28.81139133,157.6,157.47,24.34]
[1727368560784,3.1725,157.58,157.54,3.1731]
[1727368561076,3.1725,157.58,157.47,24.34]
[1727368562172,25.5858,157.6,157.53,3.1733]
[1727368562173,3.1728,157.57,157.53,3.1733]
[1727368562375,24.34,157.57,157.53,3.1733]
[1727368562570,24.34,157.57,157.46,6.3498]
[1727368562877,3.173,157.56,157.53,3.1735]
[1727368563075,24.34,157.57,157.46,6.3498]
[1727368563284,25.5858,157.6,157.47,24.34]
[1727368563572,3.1728,157.57,157.47,24.34]
[1727368563779,24.34,157.57,157.45,28.83462095]
[1727368563978,1.2458,157.6,157.45,4.49462095]
[1727368563979,24.34,157.55,157.45,4.49462095]
[1727368564379,1.26,157.54,157.45,4.49462095]
[1727368564584,18.4139,157.51,157.48,3.1744]
[1727368564778,15.24,157.51,157.43,2.5944]
[1727368565074,15.24,157.51,157.44,3.24400152]
[1727368565578,15.24,157.51,157.43,2.5944]
[1727368565981,1.26,157.54,157.46,15.24]
[1727368566178,15.24,157.58,157.48,15.24]
[1727368566371,3.1728,157.57,157.48,24.39]
[1727368566574,1.3091,157.59,157.48,24.39]
[1727368566982,1.3091,157.59,157.48,27.52385783]
[1727368567280,24.39,157.58,157.48,3.13385783]
[1727368567480,3.1732,157.55,157.52,3.1735]
[1727368568081,3.1734,157.54,157.51,3.1739]
[1727368568480,24.39,157.58,157.46,1.3613]
[1727368568674,24.39,157.58,157.5,3.1739]
[1727368569081,24.39,157.58,157.47,3.10095971]
[1727368569484,24.39,157.58,157.46,25.7513]
[1727368569781,3.1725,157.58,157.48,24.39]
[1727368570486,1.3091,157.59,157.48,24.39]
[1727368570881,1.3091,157.59,157.51,3.1738]
[1727368571083,3.1727,157.57,157.48,24.39]
[1727368571685,3.1726,157.58,157.48,24.39]
[1727368572091,24.39,157.62,157.47,6.3491]
[1727368572285,3.1728,157.57,157.48,24.39]
[1727368572485,24.39,157.62,157.48,24.39]
[1727368572689,24.39,157.62,157.5,24.39]
[1727368572884,24.39,157.62,157.51,2.653]
[1727368573185,1.3682,157.63,157.51,2.653]
[1727368573395,1.3682,157.63,157.53,24.39]
[1727368573681,4.5397,157.63,157.54,3.16531399]
[1727368573887,24.39,157.67,157.55,24.39]
[1727368574285,24.39,157.67,157.55,27.54582697]
[1727368574710,24.39,157.67,157.59,3.1723]
[1727368574891,3.1718,157.62,157.59,3.1723]
[1727368575486,24.39,157.67,157.55,27.54582697]
[1727368576582,3.1715,157.63,157.6,3.172]
[1727368576989,24.39,157.67,157.55,27.54582697]
[1727368577187,3.1713,157.64,157.61,3.1717]
[1727368577383,1.3682,157.68,157.58,24.39]
[1727368577585,1.3682,157.68,157.59,1.3106]
[1727368577816,1.3682,157.68,157.59,2.6213]
[1727368577982,1.3682,157.68,157.64,3.1711]
[1727368578186,1.3682,157.68,157.6,27.62875961]
[1727368578383,24.39,157.74,157.6,24.39]
[1727368578588,24.39,157.74,157.63,24.39]
[1727368578787,1.2925,157.75,157.63,24.39]
[1727368578983,24.39,157.74,157.63,24.39]
[1727368579281,24.39,157.74,157.62,3.09597115]
[1727368579486,24.39,157.71,157.59,2.6213]
[1727368579687,3.1705,157.68,157.6,3.14705769]
[1727368580292,24.39,157.69,157.59,2.6213]
[1727368580587,1.2812,157.68,157.6,3.12663458]
[1727368581286,4.4517,157.68,157.64,3.1711]
[1727368581486,4.4517,157.68,157.59,5.82277846]
[1727368581487,1.2812,157.68,157.59,5.82277846]
[1727368581687,1.2812,157.68,157.59,2.6213]
[1727368581886,1.2812,157.68,157.65,3.171]
[1727368582584,1.2812,157.68,157.59,2.6213]
[1727368582782,1.2812,157.68,157.6,3.23541191]
[1727368583182,4.4517,157.68,157.59,2.6213]
[1727368583386,24.39,157.72,157.59,2.6213]
[1727368583687,24.39,157.74,157.6,24.39]
[1727368584289,3.17,157.71,157.6,24.39]
[1727368584489,3.17,157.71,157.6,27.51088585]
[1727368584795,24.39,157.74,157.67,3.1705]
[1727368585494,24.39,157.74,157.6,27.51088585]
[1727368585683,24.39,157.74,157.63,24.39]
[1727368585884,3.1699,157.71,157.63,24.39]
[1727368586086,3.1699,157.71,157.63,27.58003445]
[1727368586485,3.17,157.71,157.63,27.58003445]
[1727368586890,3.1693,157.74,157.65,24.39]
[1727368587199,1.3385,157.75,157.66,2.5538]
[1727368587491,3.1692,157.75,157.72,3.1696]
[1727368587793,1.2526,157.81,157.68,24.39]
[1727368588093,3.1688,157.77,157.74,3.1691]
[1727368588793,3.169,157.76,157.68,24.39]
[1727368589093,3.169,157.76,157.68,27.60923802]
[1727368589685,3.169,157.76,157.72,3.1695]
[1727368589889,3.169,157.76,157.68,27.60923802]
[1727368590096,3.1687,157.77,157.68,27.60923802]
[1727368591095,24.39,157.79,157.72,3.1695]
[1727368591096,3.1689,157.76,157.72,3.1695]
[1727368591295,24.39,157.79,157.68,27.60923802]
[1727368591493,24.39,157.79,157.7,3.17]
[1727368591699,24.39,157.79,157.67,24.39]
[1727368591997,4.48452342,157.81,157.67,27.63824838]
[1727368592197,3.1688,157.77,157.67,27.63824838]
[1727368592593,3.1688,157.77,157.69,24.39]
[1727368592799,3.1685,157.78,157.74,3.1691]
[1727368593003,3.1685,157.78,157.69,24.39]
[1727368593199,1.2526,157.81,157.75,3.169]
[1727368593500,3.1684,157.79,157.75,3.169]
[1727368593694,3.1684,157.79,157.69,27.495156]
[1727368593897,3.1682,157.8,157.72,24.39]
[1727368594194,26.6722,157.87,157.74,24.39]
[1727368594386,3.1677,157.82,157.78,3.1683]
[1727368594793,3.1677,157.82,157.77,3.18916481]
[1727368594997,3.1679,157.81,157.75,1.276]
[1727368596000,3.1681,157.8,157.77,3.1685]
[1727368596225,24.39,157.84,157.75,1.276]
[1727368596393,24.39,157.84,157.73,2.6285]
[1727368596693,3.1681,157.8,157.73,2.6285]
[1727368597100,3.1683,157.79,157.76,3.1687]
[1727368597300,24.39,157.84,157.73,2.6285]
[1727368597707,3.1688,157.77,157.73,2.6285]
[1727368597901,24.39,157.82,157.73,2.6285]
[1727368598102,24.39,157.84,157.73,2.6285]
[1727368598403,3.1682,157.8,157.74,24.39]
[1727368598594,1.2581,157.88,157.77,24.39]
[1727368598801,1.2581,157.88,157.8,3.1679]
[1727368598993,3.1672,157.85,157.77,27.61566789]
[1727368599397,1.2581,157.88,157.8,3.1679]
[1727368599599,3.1672,157.85,157.77,27.61566789]
[1727368599797,1.2581,157.88,157.77,27.61566789]
[1727368599993,3.1667,157.87,157.77,27.61566789]
[1727368600206,1.2581,157.9,157.8,24.39]
[1727368600420,1.2581,157.9,157.86,3.1668]
[1727368600610,3.1662,157.9,157.82,24.39]
[1727368600903,24.39,157.93,157.81,2.5337]
[1727368601298,2.22304543,157.92,157.81,2.5337]
[1727368601496,1.2581,157.92,157.81,2.5337]
[1727368601693,3.1667,157.87,157.81,2.5337]
[1727368602008,1.2581,157.92,157.81,2.5337]
[1727368602009,24.39,157.91,157.81,2.5337]
[1727368602504,1.2581,157.92,157.81,2.5337]
[1727368602703,1.2581,157.92,157.86,3.1667]
[1727368602906,1.2581,157.92,157.81,2.5337]
[1727368603202,3.166,157.91,157.88,3.1664]
[1727368603404,24.39,157.96,157.86,3.1249647]
[1727368603617,24.39,157.96,157.82,24.39]
[1727368603618,27.52383524,157.96,157.82,24.39]
[1727368603804,24.39,157.94,157.81,2.5337]
[1727368604107,24.39,157.91,157.81,2.5337]
[1727368604508,1.259,157.9,157.81,2.5337]
[1727368605002,24.39,157.88,157.81,1.2561]
[1727368605404,3.1675,157.83,157.81,1.2561]
[1727368605600,3.20796761,157.89,157.75,25.646]
[1727368605601,24.39,157.86,157.75,25.646]
[1727368605806,24.39,157.86,157.76,1.2553]
[1727368606013,4.20036761,157.89,157.77,3.1686]
[1727368606014,24.39,157.84,157.77,3.1686]
[1727368606216,24.39,157.81,157.75,1.256]
[1727368606400,24.39,157.81,157.72,58.73453965]
[1727368606708,24.39,157.81,157.7,1.3255]
[1727368606709,24.39,157.81,157.7,2.6875]
[1727368607103,24.39,157.79,157.7,2.6875]
[1727368607504,24.39,157.81,157.7,2.6875]
[1727368607908,27.49016538,157.81,157.7,2.6875]
[1727368608310,3.1683,157.79,157.75,3.169]
[1727368608511,1.3641,157.83,157.71,24.39]
[1727368608710,1.3641,157.83,157.74,24.39]
[1727368609004,26.6675,157.87,157.74,24.39]
[1727368609204,28.043,157.87,157.75,1.2906]
[1727368609411,28.043,157.87,157.76,3.20760313]
[1727368609412,3.1679,157.81,157.76,3.20760313]
[1727368609609,3.653,157.87,157.76,3.20760313]
[1727368609813,3.168,157.81,157.75,1.2906]
[1727368610010,24.39,157.83,157.75,1.2906]
[1727368610210,24.39,157.83,157.71,24.39]
[1727368610406,24.39,157.83,157.75,3.169]
[1727368610611,24.39,157.83,157.7,2.6875]
[1727368610813,3.1688,157.77,157.73,3.1694]
[1727368611006,24.39,157.81,157.7,2.6875]
[1727368611408,3.1687,157.77,157.73,3.1694]
[1727368611608,24.39,157.81,157.73,3.1694]
[1727368611812,1.3436,157.8,157.73,3.1694]
[1727368612013,3.169,157.76,157.72,3.1695]
[1727368612237,3.169,157.76,157.7,2.6875]
[1727368612615,3.169,157.76,157.73,3.1693]
[1727368613311,24.39,157.78,157.7,2.6875]
[1727368613613,24.39,157.76,157.64,24.39]
[1727368613822,24.39,157.76,157.6,24.39]
[1727368613823,24.39,157.73,157.66,1.3006]
[1727368614413,3.1697,157.72,157.68,3.1703]
[1727368614613,24.39,157.73,157.68,3.1703]
[1727368615612,24.39,157.73,157.66,1.3006]
[1727368615613,2.2778,157.79,157.73,3.1693]
[1727368615815,25.7336,157.8,157.73,3.1693]
[1727368616116,3.1688,157.77,157.73,3.1693]
[1727368616510,3.1688,157.77,157.74,3.1692]
[1727368616910,25.7336,157.8,157.67,24.39]
[1727368617115,25.7336,157.8,157.72,3.1695]